bitfinex-derivatives/quotes_BTCF0:USTF0_20250318
["timestamp","ask_amount","ask_price","bid_price","bid_amount"]
[1742280684026,0.1840681,82397.0,82396.0,0.2412148]
[1742280684223,0.1840681,82397.0,82396.0,0.5226148]
[1742280684535,0.1860681,82397.0,82396.0,0.5226148]
[1742280684736,0.1213733,82397.0,82396.0,0.7626148]
[1742280685326,0.00018206,82398.0,82396.0,0.7626148]
[1742280685526,0.1233733,82397.0,82396.0,0.7626148]
[1742280685732,0.002,82397.0,82396.0,0.6427748]
[1742280685935,0.002,82397.0,82396.0,0.7626148]
[1742280686132,1.23330858,82399.0,82397.0,0.1213733]
[1742280686333,0.21839085,82407.0,82404.0,0.121363]
[1742280686632,0.25341131,82423.0,82422.0,0.1213365]
[1742280686831,0.25341131,82423.0,82422.0,0.4811765]
[1742280687231,0.37474631,82423.0,82422.0,0.49258281]
[1742280688433,0.37974631,82423.0,82422.0,0.49258281]
[1742280688634,0.38474631,82423.0,82422.0,0.49258281]
[1742280689437,0.38474631,82423.0,82422.0,0.62468281]
[1742280689741,0.38474631,82423.0,82422.0,0.89448281]
[1742280690239,0.131335,82423.0,82422.0,0.89448281]
[1742280691034,0.01,82423.0,82422.0,0.89448281]
[1742280691226,0.01,82423.0,82422.0,0.92448281]
[1742280691428,0.00018206,82431.0,82430.0,0.1213247]
[1742280691628,0.00018206,82431.0,82430.0,1.2919247]
[1742280691835,0.1212984,82448.0,82447.0,0.1212982]
[1742280692142,0.1212984,82448.0,82447.0,0.5013382]
[1742280693029,0.2539984,82448.0,82447.0,0.5013382]
[1742280693942,0.2539984,82448.0,82447.0,0.3812982]
[1742280694136,0.2539984,82448.0,82447.0,0.2412982]
[1742280694442,0.2539984,82448.0,82447.0,0.5212982]
[1742280694745,0.2539984,82448.0,82447.0,0.4012982]
[1742280694936,0.2539984,82448.0,82447.0,0.6631182]
[1742280695437,0.005,82448.0,82447.0,0.6631182]
[1742280696639,0.005,82448.0,82447.0,0.8431182]
[1742280696835,0.1357,82463.0,82455.0,0.1212879]
[1742280697045,0.1357,82463.0,82455.0,0.9120879]
[1742280697637,0.1357,82463.0,82455.0,1.1520879]
[1742280697931,0.00618193,82456.0,82455.0,0.9120879]
[1742280698536,0.00618193,82456.0,82455.0,1.1820879]
[1742280698742,0.00018193,82456.0,82455.0,0.9140879]
[1742280698943,0.00018193,82456.0,82455.0,1.1640879]
[1742280699137,0.00018193,82456.0,82455.0,0.9140879]
[1742280699732,0.00018193,82456.0,82455.0,1.0240879]
[1742280699943,0.00018193,82456.0,82455.0,0.9140879]
[1742280700641,0.00018193,82456.0,82455.0,1.1540879]
[1742280700843,0.00018193,82456.0,82455.0,0.8840879]
[1742280702937,0.00018193,82456.0,82455.0,1.1340879]
[1742280703139,0.00018193,82456.0,82455.0,0.8840879]
[1742280703545,0.13198193,82456.0,82455.0,0.8840879]
[1742280703738,0.13518193,82456.0,82455.0,0.8840879]
[1742280704449,0.13518193,82456.0,82455.0,0.9140879]
[1742280704639,0.00018193,82456.0,82455.0,0.9140879]
[1742280706439,0.00018193,82456.0,82455.0,1.1940879]
[1742280706748,0.00018193,82456.0,82455.0,0.9140879]
[1742280706949,0.00018193,82456.0,82455.0,1.0240879]
[1742280707146,0.00018193,82456.0,82455.0,0.9140879]
[1742280707650,0.00018193,82456.0,82455.0,0.7640879]
[1742280707854,0.00018193,82456.0,82455.0,0.8838479]
[1742280708644,0.00018193,82456.0,82455.0,0.7640879]
[1742280708844,0.00018193,82456.0,82455.0,0.9938079]
[1742280709045,0.00018193,82456.0,82455.0,0.8838079]
[1742280709248,0.00018193,82456.0,82455.0,1.1438079]
[1742280709447,0.00018193,82456.0,82455.0,0.9038079]
[1742280709654,0.2779,82460.0,82459.0,0.121282]
[1742280709853,0.2779,82460.0,82459.0,0.381282]
[1742280710255,0.135,82461.0,82460.0,0.1212806]
[1742280710448,0.135,82461.0,82460.0,0.8121806]
[1742280710644,0.4601807,82480.0,82479.0,0.1212526]
[1742280710845,0.4601807,82480.0,82479.0,0.4709726]
[1742280711049,0.46397112,82480.0,82479.0,0.2409726]
[1742280711558,0.1212541,82478.0,82477.0,0.0606271]
[1742280711757,0.1212541,82478.0,82477.0,0.1803471]
[1742280711946,0.12504452,82478.0,82477.0,0.1803471]
[1742280712358,0.26614452,82478.0,82477.0,0.1803471]
[1742280712850,0.00379042,82478.0,82477.0,0.4103471]
[1742280713057,0.26614452,82478.0,82477.0,0.2906271]
[1742280713257,0.14489042,82478.0,82477.0,0.4103471]
[1742280713757,0.27789042,82478.0,82477.0,0.5405471]
[1742280713948,0.28882691,82478.0,82477.0,0.5405471]
[1742280714555,0.41008101,82478.0,82477.0,0.4103471]
[1742280715850,0.41208101,82478.0,82477.0,0.4103471]
[1742280716244,0.41208101,82478.0,82477.0,0.1803471]
[1742280716746,0.29082691,82478.0,82477.0,0.4603471]
[1742280716951,0.41208101,82478.0,82477.0,0.4603471]
[1742280717557,0.41208101,82478.0,82477.0,0.1803471]
[1742280717757,0.41230133,82478.0,82477.0,0.1803471]
[1742280718258,0.41230133,82478.0,82477.0,0.0606271]
[1742280718457,0.29104723,82478.0,82477.0,0.4207471]
[1742280718658,0.29104723,82478.0,82477.0,0.5571471]
[1742280718860,0.41230133,82478.0,82477.0,0.4207471]
[1742280719155,0.29104723,82478.0,82477.0,0.4207471]
[1742280719349,0.41230133,82478.0,82477.0,0.4370271]
[1742280719550,0.41230133,82478.0,82477.0,0.4207071]
[1742280719759,0.41263435,82478.0,82477.0,0.4207071]
[1742280720163,0.41263435,82478.0,82477.0,0.1807071]
[1742280721163,0.29138025,82478.0,82477.0,0.4307071]
[1742280721363,0.29138025,82478.0,82477.0,0.5635071]
[1742280723362,0.27989042,82478.0,82477.0,0.5635071]
[1742280723570,0.29132575,82478.0,82477.0,0.5635071]
[1742280725478,0.28753533,82478.0,82477.0,0.5635071]
[1742280726475,0.28753533,82478.0,82477.0,0.6735071]
[1742280726670,0.28753533,82478.0,82477.0,0.5635071]
[1742280726885,0.28753533,82478.0,82477.0,0.8313071]
[1742280727073,0.135,82478.0,82477.0,0.8313071]
[1742280728284,0.135,82478.0,82477.0,1.2313071]
[1742280728580,0.002,82478.0,82477.0,1.2213071]
[1742280728779,0.00018193,82488.0,82487.0,0.1212409]
[1742280729084,0.1,82500.0,82499.0,0.1212232]
[1742280729279,0.1,82500.0,82499.0,2.0327432]
[1742280729479,0.1,82500.0,82499.0,1.9727432]
[1742280729674,2e-08,82500.0,82499.0,2.2227432]
[1742280729877,2e-08,82500.0,82499.0,2.35185274]
[1742280730077,2e-08,82500.0,82499.0,2.32185274]
[1742280730277,2e-08,82500.0,82499.0,2.35185274]
[1742280730477,2e-08,82500.0,82499.0,2.32185274]
[1742280730672,2e-08,82500.0,82499.0,2.60185274]
[1742280730874,0.00200002,82500.0,82499.0,2.44346492]
[1742280731082,0.00200002,82500.0,82499.0,2.33346492]
[1742280731384,0.00200002,82500.0,82499.0,1.95324492]
[1742280732275,0.27440002,82500.0,82499.0,1.95324492]
[1742280732587,0.39562182,82500.0,82499.0,2.37073008]
[1742280732782,0.27440002,82500.0,82499.0,2.37073008]
[1742280732986,0.27440002,82500.0,82499.0,2.62073008]
[1742280733285,0.14330002,82500.0,82499.0,2.37073008]
[1742280733680,0.14330002,82500.0,82499.0,2.48073008]
[1742280733880,0.14330002,82500.0,82499.0,2.37073008]
[1742280734589,0.00200002,82500.0,82499.0,2.40073008]
[1742280734792,0.00200002,82500.0,82499.0,2.93073008]
[1742280735092,0.00200002,82500.0,82499.0,2.40073008]
[1742280735498,0.00200002,82500.0,82499.0,2.37073008]
[1742280735693,0.00200002,82500.0,82499.0,1.95324492]
[1742280735888,0.00200002,82500.0,82499.0,2.46324492]
[1742280736093,2e-08,82500.0,82499.0,1.95724492]
[1742280736592,2e-08,82500.0,82499.0,1.98724492]
[1742280736789,2e-08,82500.0,82499.0,2.07724492]
[1742280736989,2e-08,82500.0,82499.0,2.21724492]
[1742280737184,2e-08,82500.0,82499.0,2.52024492]
[1742280737490,2e-08,82500.0,82499.0,2.51024492]
[1742280737694,2e-08,82500.0,82499.0,2.27024492]
[1742280737890,2e-08,82500.0,82499.0,2.54024492]
[1742280738084,2e-08,82500.0,82499.0,2.27024492]
[1742280738484,2e-08,82500.0,82499.0,2.38024492]
[1742280738990,2e-08,82500.0,82499.0,2.24060492]
[1742280739186,2e-08,82500.0,82499.0,2.24056492]
[1742280739589,2e-08,82500.0,82499.0,2.35056492]
[1742280739795,2e-08,82500.0,82499.0,2.24056492]
[1742280740690,0.137,82505.0,82504.0,0.1212159]
[1742280740891,0.137,82505.0,82504.0,0.7320159]
[1742280741499,0.00018134,82508.0,82507.0,0.1212115]
[1742280741694,0.00018134,82508.0,82507.0,0.8321315]
[1742280741892,0.00018134,82508.0,82507.0,0.4921315]
[1742280742195,0.00018134,82508.0,82507.0,1.0521315]
[1742280742395,0.00018134,82508.0,82507.0,0.5121315]
[1742280742695,0.00018134,82508.0,82507.0,0.4921315]
[1742280742998,0.00018134,82508.0,82507.0,0.5121315]
[1742280743191,0.00018134,82508.0,82507.0,0.6221315]
[1742280743397,0.00018134,82508.0,82507.0,0.5131315]
[1742280744703,0.00018134,82508.0,82507.0,0.7531315]
[1742280744895,0.00018134,82508.0,82507.0,0.5131315]
[1742280745092,0.0605859,82536.0,82535.0,0.1211689]
[1742280745292,0.1817516,82541.0,82540.0,0.181736]
[1742280745498,0.1817516,82541.0,82540.0,0.461736]
[1742280746098,0.1817516,82541.0,82540.0,0.3405797]
[1742280746300,0.1817516,82541.0,82540.0,0.28]
[1742280746608,0.1211643,82541.0,82540.0,0.121163]
[1742280748001,0.1211704,82535.0,82534.0,0.92012]
[1742280748201,0.4819704,82535.0,82534.0,1.04096]
[1742280748903,0.7595704,82535.0,82534.0,1.04096]
[1742280750000,0.7595704,82535.0,82523.0,0.0605936]
[1742280750001,0.121185,82525.0,82524.0,0.92012]
[1742280750196,0.121185,82525.0,82524.0,1.04112]
[1742280750811,0.392385,82525.0,82524.0,1.04112]
[1742280751011,0.392385,82525.0,82524.0,1.1623065]
[1742280752310,0.392385,82525.0,82524.0,0.92012]
[1742280752605,0.652385,82525.0,82524.0,0.92012]
[1742280752905,0.392385,82525.0,82524.0,0.92012]
[1742280753310,0.672385,82525.0,82524.0,0.92012]
[1742280753809,0.672385,82525.0,82496.0,0.21682701]
[1742280753810,0.7012,82525.0,82496.0,0.21682701]
[1742280754006,0.7012,82525.0,82499.0,0.2424425]
[1742280754007,0.1212247,82500.0,82499.0,0.2424425]
[1742280754210,0.1212247,82500.0,82499.0,1.2838425]
[1742280754510,0.1212247,82500.0,82499.0,0.92008]
[1742280754716,0.1212247,82500.0,82499.0,1.04136]
[1742280755105,0.3921247,82500.0,82499.0,1.1625832]
[1742280755415,0.3921247,82500.0,82499.0,1.1655832]
[1742280755905,0.3921247,82500.0,82499.0,1.1695832]
[1742280756104,0.2709,82500.0,82499.0,1.1695832]
[1742280757723,0.3921218,82500.0,82499.0,1.04836]
[1742280759007,0.3921218,82500.0,82499.0,0.92708]
[1742280759208,0.6321218,82500.0,82499.0,0.007]
[1742280759412,0.3921218,82500.0,82499.0,0.007]
[1742280760416,0.2709,82500.0,82499.0,0.1282232]
[1742280760614,0.3921218,82500.0,82499.0,0.2691232]
[1742280760807,0.3921218,82500.0,82499.0,0.2661232]
[1742280761507,0.3921218,82500.0,82499.0,0.3873232]
[1742280762107,0.3921218,82500.0,82499.0,0.3833232]
[1742280763411,0.3921218,82500.0,82499.0,0.2621]
[1742280763615,0.3921218,82500.0,82499.0,0.3833232]
[1742280764216,0.3921218,82500.0,82499.0,0.3832032]
[1742280765423,0.2709,82500.0,82499.0,0.3832032]
[1742280766106,0.2709,82500.0,82499.0,0.5596032]
[1742280766313,0.1318,82500.0,82499.0,0.8296032]
[1742280766513,0.1408,82513.0,82507.0,0.1212115]
[1742280766717,0.2749,82522.0,82521.0,0.1211909]
[1742280766917,0.3960895,82522.0,82521.0,0.1211909]
[1742280767120,0.2749,82522.0,82521.0,0.1211909]
[1742280767316,0.2749,82522.0,82521.0,0.2421909]
[1742280767514,0.1341,82522.0,82521.0,0.8329909]
[1742280767719,0.1211814,82528.0,82527.0,0.1211821]
[1742280767923,0.2552814,82528.0,82527.0,0.1211821]
[1742280768324,0.1211836,82526.0,82525.0,0.14]
[1742280768524,0.1211895,82522.0,82521.0,0.4818]
[1742280768709,0.1211895,82522.0,82521.0,0.121]
[1742280769115,0.1211968,82517.0,82516.0,0.1211979]
[1742280769324,0.1211968,82517.0,82516.0,0.2423979]
[1742280770022,0.1211968,82517.0,82516.0,0.2423179]
[1742280770220,0.3994968,82517.0,82516.0,0.2423179]
[1742280770712,0.2632968,82517.0,82516.0,0.3788179]
[1742280772122,0.1211866,82528.0,82527.0,0.0605903]
[1742280772321,0.1211866,82528.0,82527.0,0.1817903]
[1742280772919,0.1211866,82528.0,82527.0,0.5425903]
[1742280773528,0.2667866,82528.0,82527.0,0.1212]
[1742280773825,0.1211968,82518.0,82517.0,0.0605976]
[1742280774026,0.1211968,82518.0,82517.0,0.3263976]
[1742280774218,0.3984968,82518.0,82517.0,0.3263976]
[1742280774415,0.3984968,82518.0,82517.0,0.2658]
[1742280774615,0.3984968,82518.0,82517.0,0.26576]
[1742280774922,0.3984968,82518.0,82517.0,0.3869568]
[1742280777120,0.2667968,82518.0,82517.0,0.3869568]
[1742280777627,0.4056968,82518.0,82517.0,0.3869568]
[1742280778827,0.2667968,82518.0,82517.0,0.3869568]
[1742280779228,0.4056968,82518.0,82517.0,0.3869568]
[1742280779426,0.2667968,82518.0,82517.0,0.3869568]
[1742280780817,0.4060968,82518.0,82517.0,0.3869568]
[1742280781014,0.4060968,82518.0,82517.0,0.2657968]
[1742280781219,0.4060968,82518.0,82517.0,0.3865968]
[1742280783930,0.4060968,82518.0,82517.0,0.5265968]
[1742280785031,0.2667968,82518.0,82517.0,0.5265968]
[1742280785232,0.2667953,82518.0,82517.0,0.5265968]
[1742280786020,0.04847,82519.0,82518.0,0.1211953]
[1742280786332,0.1696639,82519.0,82518.0,0.6201953]
[1742280786721,0.04847,82519.0,82518.0,0.6201953]
[1742280786925,0.04847,82519.0,82518.0,0.6301953]
[1742280787129,0.0605845,82536.0,82529.0,0.1211792]
[1742280787336,0.1327,82536.0,82529.0,0.8826192]
[1742280787631,0.0605799,82543.0,82529.0,0.76144]
[1742280787820,0.1817403,82542.0,82541.0,0.1211601]
[1742280788027,0.0605802,82542.0,82541.0,0.2418401]
[1742280788221,0.1968802,82542.0,82541.0,0.2418401]
[1742280788426,0.3318802,82542.0,82541.0,0.2418401]
[1742280789328,0.1968802,82542.0,82541.0,0.2418401]
[1742280789832,0.0605802,82542.0,82541.0,0.2418401]
[1742280790036,0.1968802,82542.0,82541.0,0.2418401]
[1742280792135,0.2574601,82542.0,82541.0,0.2418401]
[1742280792436,0.1211601,82542.0,82541.0,0.3024201]
[1742280792642,0.1384,82554.0,82537.0,0.121165]
[1742280792643,0.1211674,82538.0,82537.0,0.121165]
[1742280792842,0.1211674,82538.0,82537.0,0.241645]
[1742280793042,0.3909674,82538.0,82537.0,0.241645]
[1742280793427,0.3909674,82538.0,82537.0,0.121165]
[1742280793627,0.3909674,82538.0,82537.0,0.241645]
[1742280794035,0.1211674,82538.0,82537.0,0.721965]
[1742280794234,0.1211674,82538.0,82537.0,0.842405]
[1742280794437,0.1211674,82538.0,82537.0,0.721965]
[1742280794639,0.1211674,82538.0,82537.0,0.842365]
[1742280797843,0.1211674,82538.0,82537.0,0.721965]
[1742280798035,0.1211674,82538.0,82537.0,0.842165]
[1742280798236,0.1211611,82542.0,82539.0,0.0605819]
[1742280798437,0.1211611,82542.0,82541.0,0.1211601]
[1742280798744,0.060579,82544.0,82543.0,0.1211586]
[1742280798937,0.060579,82544.0,82543.0,0.5213586]
[1742280799137,0.060579,82544.0,82543.0,0.4002]
[1742280799335,0.060579,82544.0,82537.0,0.3608]
[1742280799534,0.1211645,82539.0,82538.0,0.12044]
[1742280799845,0.1211645,82539.0,82538.0,0.251606]
[1742280800441,0.1211645,82539.0,82538.0,0.388506]
[1742280801545,0.1211674,82537.0,82536.0,0.92012]
[1742280802242,0.3952674,82537.0,82536.0,0.92012]
[1742280803442,0.6352674,82537.0,82536.0,0.92012]
[1742280803641,0.3952674,82537.0,82536.0,0.92012]
[1742280804342,0.7560674,82537.0,82536.0,0.92012]
[1742280804947,0.3952674,82537.0,82536.0,0.92012]
[1742280805442,0.1211718,82534.0,82533.0,0.00018182]
[1742280805837,0.7419718,82534.0,82533.0,0.00018182]
[1742280806446,0.4819718,82534.0,82533.0,0.00018182]
[1742280806643,0.7619718,82534.0,82533.0,0.00018182]
[1742280807136,0.4011718,82534.0,82533.0,0.00018182]
[1742280807941,0.7619718,82534.0,82533.0,0.00018182]
[1742280811053,0.0605893,82530.0,82513.0,0.060601]
[1742280811243,0.1211924,82520.0,82519.0,0.2533]
[1742280811441,0.1211924,82520.0,82519.0,0.3887]
[1742280812044,0.4016924,82520.0,82519.0,0.3887]
[1742280812447,0.4016924,82520.0,82519.0,0.5098939]
[1742280812643,0.4016924,82520.0,82519.0,0.3887]
[1742280813447,0.4016924,82520.0,82519.0,0.5098939]
[1742280813639,0.4016924,82520.0,82519.0,0.38854]
[1742280813840,0.4016924,82520.0,82519.0,0.1331]
[1742280814147,0.4016924,82520.0,82519.0,0.25314]
[1742280814739,0.4016924,82520.0,82519.0,0.5121339]
[1742280814942,0.2631924,82520.0,82519.0,0.5121339]
[1742280816037,0.1211924,82520.0,82519.0,0.5121339]
[1742280816244,0.1817831,82523.0,82522.0,0.1211895]
[1742280816445,0.1374,82524.0,82520.0,0.0605955]
[1742280816651,0.00018182,82528.0,82527.0,0.1211821]
[1742280816846,0.12136242,82528.0,82527.0,0.2411021]
[1742280817045,0.12136242,82528.0,82527.0,0.5119021]
[1742280818446,0.12136242,82528.0,82527.0,0.8727021]
[1742280818842,0.00018182,82528.0,82527.0,0.8727021]
[1742280819057,0.181754,82536.0,82535.0,0.1211689]
[1742280819355,0.181754,82536.0,82535.0,0.2416089]
[1742280819753,0.181754,82536.0,82535.0,0.5137089]
[1742280820460,0.181754,82536.0,82535.0,1.1445089]
[1742280822357,0.0605851,82536.0,82535.0,1.1445089]
[1742280823649,0.0605851,82536.0,82535.0,1.0240689]
[1742280823851,0.0605851,82536.0,82535.0,0.7835089]
[1742280824056,0.0605851,82536.0,82535.0,0.2721]
[1742280824361,0.0605851,82536.0,82527.0,0.07237754]
[1742280824362,0.1211806,82529.0,82528.0,0.1211806]
[1742280824551,0.1211806,82529.0,82528.0,0.5294206]
[1742280824860,0.2640806,82529.0,82528.0,0.5294206]
[1742280827751,0.2640806,82529.0,82528.0,0.4091806]
[1742280827962,0.4058806,82529.0,82528.0,0.5091806]
[1742280828261,0.6658806,82529.0,82528.0,0.25456]
[1742280828454,0.4058806,82529.0,82528.0,0.25456]
[1742280829262,0.41754118,82529.0,82528.0,0.11996]
[1742280829458,0.41754118,82529.0,82527.0,0.00018182]
[1742280829459,0.1211806,82528.0,82527.0,2e-08]
[1742280829664,0.6764806,82528.0,82527.0,2e-08]
[1742280829958,0.1212041,82512.0,82503.0,0.1202]
[1742280830266,0.1212041,82512.0,82507.0,0.22190872]
[1742280830267,0.12121,82508.0,82507.0,0.22190872]
[1742280830457,0.73201,82508.0,82507.0,0.22190872]
[1742280830854,0.74109826,82508.0,82507.0,0.22190872]
[1742280831254,0.1212188,82502.0,82501.0,0.36178507]
[1742280831567,0.4012188,82502.0,82501.0,0.36178507]
[1742280831769,0.3912188,82502.0,82501.0,0.36178507]
[1742280831958,0.4012188,82502.0,82501.0,0.36178507]
[1742280832266,0.4055188,82502.0,82501.0,0.36178507]
[1742280832569,0.6315188,82502.0,82501.0,0.36178507]
[1742280832867,0.6615188,82502.0,82501.0,0.36378507]
[1742280833365,0.67351285,82502.0,82501.0,0.36378507]
[1742280833863,0.64351285,82502.0,82501.0,0.36378507]
[1742280834067,0.64551285,82502.0,82501.0,0.36378507]
[1742280834565,0.6555188,82502.0,82501.0,0.36178507]
[1742280834757,0.4055188,82502.0,82501.0,0.36178507]
[1742280835361,0.6455188,82502.0,82501.0,0.36178507]
[1742280835561,0.1212203,82501.0,82500.0,0.1335]
[1742280835967,0.4195203,82501.0,82500.0,0.1335]
[1742280836168,0.4195203,82501.0,82500.0,0.2719]
[1742280836674,0.4215203,82501.0,82500.0,0.2719]
[1742280837669,0.2716203,82501.0,82500.0,0.2719]
[1742280837867,0.1252203,82501.0,82500.0,0.3931218]
[1742280838365,0.004,82501.0,82500.0,0.6431218]
[1742280838566,0.1212162,82504.0,82503.0,0.060608]
[1742280838768,0.1212162,82504.0,82503.0,0.600508]
[1742280839967,0.1242162,82504.0,82503.0,0.600508]
[1742280841666,0.1262162,82504.0,82503.0,0.600508]
[1742280843363,0.1262162,82504.0,82503.0,0.2899]
[1742280843866,0.1262162,82504.0,82503.0,0.4111174]
[1742280844060,0.2733162,82504.0,82503.0,0.4111174]
[1742280845170,0.2733162,82504.0,82503.0,0.2899]
[1742280845371,0.2733162,82504.0,82503.0,0.4111174]
[1742280846571,0.2733162,82504.0,82503.0,0.2899]
[1742280847361,0.2733162,82504.0,82503.0,0.4111174]
[1742280847558,0.2733162,82504.0,82503.0,0.2899]
[1742280848067,0.2733162,82504.0,82503.0,0.4111174]
[1742280850479,0.2733162,82504.0,82503.0,0.2899]
[1742280850875,0.2733162,82504.0,82503.0,0.40962]
[1742280851066,0.28519944,82504.0,82503.0,0.40962]
[1742280851669,0.2733162,82504.0,82503.0,0.40962]
[1742280852274,0.2733162,82504.0,82503.0,0.5308374]
[1742280852471,0.2733162,82504.0,82503.0,0.2899]
[1742280852668,0.1212218,82500.0,82499.0,0.00018182]
[1742280852881,0.4820218,82500.0,82499.0,0.00018182]
[1742280853280,0.7520218,82500.0,82499.0,0.00018182]
[1742280853580,0.8629218,82500.0,82499.0,0.00018182]
[1742280853781,0.6229218,82500.0,82499.0,0.00018182]
[1742280855079,0.6239218,82500.0,82499.0,0.00018182]
[1742280855474,0.6249218,82500.0,82499.0,0.00018182]
[1742280855874,0.2641218,82500.0,82499.0,0.00018182]
[1742280856183,0.2641218,82500.0,82499.0,0.29548182]
[1742280856891,0.2641218,82500.0,82499.0,0.41670502]
[1742280857074,0.1232218,82500.0,82499.0,0.81750502]
[1742280857383,0.1232218,82500.0,82499.0,0.45670502]
[1742280857979,0.1232218,82500.0,82499.0,0.33548182]
[1742280858182,0.1232218,82500.0,82499.0,0.29548182]
[1742280858883,0.4014218,82500.0,82499.0,0.29548182]
[1742280859686,0.4014218,82500.0,82499.0,0.41524182]
[1742280861180,0.7622218,82500.0,82499.0,0.14648182]
[1742280864093,1.0222218,82500.0,82499.0,0.14648182]
[1742280864472,0.7622218,82500.0,82499.0,0.14648182]
[1742280864678,1.0422218,82500.0,82499.0,0.14648182]
[1742280864988,1.0122218,82500.0,82499.0,0.14648182]
[1742280865176,0.7622218,82500.0,82499.0,0.14648182]
[1742280865377,0.9922218,82500.0,82499.0,0.14648182]
[1742280866288,0.7622218,82500.0,82499.0,0.14648182]
[1742280866486,1.0022218,82500.0,82499.0,0.14648182]
[1742280866789,1.0322218,82500.0,82499.0,0.14648182]
[1742280867578,0.7622218,82500.0,82499.0,0.00018182]
[1742280867778,1.0422218,82500.0,82499.0,0.00018182]
[1742280867973,1.0122218,82500.0,82499.0,0.00018182]
[1742280868181,0.7622218,82500.0,82499.0,0.00018182]
[1742280868383,1.0122218,82500.0,82499.0,0.00018182]
[1742280868584,1.0222218,82500.0,82499.0,0.00018182]
[1742280869284,0.7622218,82500.0,82499.0,0.00018182]
[1742280869682,1.0222218,82500.0,82499.0,0.00018182]
[1742280870888,0.9922218,82500.0,82499.0,0.00018182]
[1742280871086,1.0222218,82500.0,82499.0,0.00018182]
[1742280871475,0.7622218,82500.0,82499.0,0.00018182]
[1742280871682,1.0322218,82500.0,82499.0,0.00018182]
[1742280871990,0.7622218,82500.0,82499.0,0.00018182]
[1742280873893,1.0422218,82500.0,82499.0,0.00018182]
[1742280874490,1.0222218,82500.0,82499.0,0.00018182]
[1742280874793,0.7622218,82500.0,82499.0,0.00018182]
[1742280874992,1.0222218,82500.0,82499.0,0.00018182]
[1742280875793,1.0022218,82500.0,82499.0,0.00018182]
[1742280875990,1.20771569,82500.0,82499.0,0.00018182]
[1742280876894,1.25771569,82500.0,82499.0,0.00018182]
[1742280877086,0.1212732,82466.0,82461.0,0.9810794]
[1742280877287,0.1212732,82466.0,82465.0,0.7461332]
[1742280877492,0.1212732,82466.0,82465.0,0.39438343]
[1742280877891,0.1212732,82466.0,82465.0,0.2850249]
[1742280878198,0.1212732,82466.0,82465.0,0.1652649]
[1742280878494,0.1212732,82466.0,82465.0,0.55306]
[1742280878691,0.1212732,82466.0,82465.0,0.55906]
[1742280878995,0.1212732,82466.0,82465.0,0.4453]
[1742280879299,0.4194732,82466.0,82465.0,0.4453]
[1742280881201,0.2688732,82466.0,82465.0,0.4453]
[1742280882704,0.2688732,82466.0,82465.0,0.4393]
[1742280884305,0.2688732,82466.0,82465.0,0.4333]
[1742280886902,0.4082732,82466.0,82465.0,0.2887]
[1742280888106,0.1212806,82460.0,82459.0,0.11976]
[1742280888306,0.4820806,82460.0,82459.0,0.26616]
[1742280888809,0.4820806,82460.0,82457.0,0.00018182]
[1742280888810,0.1212835,82458.0,82457.0,0.00018182]
[1742280889613,0.2665835,82458.0,82457.0,0.00018182]
[1742280890309,0.2645835,82458.0,82457.0,0.00018182]
[1742280891104,0.003,82458.0,82457.0,0.00018182]
[1742280891404,0.003,82458.0,82457.0,0.30186862]
[1742280891405,0.1262835,82458.0,82457.0,0.30186862]
[1742280891613,0.1262835,82458.0,82457.0,0.44676862]
[1742280893601,0.1262835,82458.0,82457.0,0.26484182]
[1742280893795,0.1262835,82458.0,82457.0,0.38612682]
[1742280894194,0.4870835,82458.0,82457.0,0.38612682]
[1742280894400,0.1262835,82458.0,82457.0,0.53472682]
[1742280900705,0.005,82458.0,82457.0,0.79472682]
[1742280901200,0.1262835,82458.0,82457.0,0.79472682]
[1742280902314,0.1262835,82458.0,82457.0,0.67496682]
[1742280902509,0.4223835,82458.0,82457.0,0.67344182]
[1742280902706,0.4223835,82458.0,82457.0,0.41344182]
[1742280902906,0.4223835,82458.0,82457.0,0.53472682]
[1742280903102,0.4223835,82458.0,82457.0,0.00018182]
[1742280903308,0.7831835,82458.0,82457.0,0.00018182]
[1742280903507,0.7831835,82458.0,82457.0,0.42546682]
[1742280906422,0.7831835,82458.0,82457.0,0.30418182]
[1742280906712,0.7831835,82458.0,82457.0,0.00018182]
[1742280906917,0.7831835,82458.0,82457.0,0.11994182]
[1742280910014,0.7831835,82458.0,82457.0,0.26954182]
[1742280910407,0.7831835,82458.0,82457.0,0.11994182]
[1742280910712,1.0531835,82458.0,82457.0,0.11994182]
[1742280910912,1.0631835,82458.0,82457.0,0.11994182]
[1742280911118,0.7831835,82458.0,82457.0,0.11994182]
[1742280911309,1.0331835,82458.0,82457.0,0.11994182]
[1742280911621,1.0331835,82458.0,82457.0,2e-08]
[1742280911803,1.0331835,82458.0,82428.0,0.3608]
[1742280911804,0.1213129,82438.0,82428.0,0.3608]
[1742280912115,0.1213129,82438.0,82437.0,0.24224429]
[1742280912709,0.3913129,82438.0,82437.0,0.24224429]
[1742280913214,0.4032569,82438.0,82437.0,0.24224429]
[1742280913418,0.6956569,82438.0,82437.0,0.24224429]
[1742280913719,0.1183218,82432.0,82429.0,0.00018193]
[1742280914018,0.4791218,82432.0,82429.0,0.00018193]
[1742280914722,0.7729218,82432.0,82429.0,0.00018193]
[1742280914914,0.1213247,82430.0,82429.0,0.00018193]
[1742280921321,0.4115247,82430.0,82429.0,0.00018193]
[1742280926222,0.4115247,82430.0,82409.0,1.3422772]
[1742280926223,0.121335,82423.0,82422.0,0.1459]
[1742280926523,0.121335,82423.0,82422.0,0.1198]
[1742280927029,0.121335,82423.0,82422.0,0.2667]
[1742280927230,0.410935,82423.0,82422.0,0.2667]
[1742280927525,0.410935,82423.0,82422.0,0.2687]
[1742280928623,0.410935,82423.0,82422.0,0.1489]
[1742280928817,0.410935,82423.0,82422.0,0.2687]
[1742280929018,0.410935,82423.0,82422.0,0.3920365]
[1742280929619,0.410935,82423.0,82422.0,0.2707]
[1742280930227,0.410935,82423.0,82422.0,0.2697]
[1742280930828,0.410935,82423.0,82422.0,0.1218]
[1742280932023,0.410935,82423.0,82422.0,0.1198]
[1742280932927,0.411935,82423.0,82422.0,0.1198]
[1742280934014,0.412935,82423.0,82422.0,0.1198]
[1742280934220,0.1213365,82422.0,82421.0,0.1437]
[1742280934421,0.1213365,82422.0,82421.0,0.384838]
[1742280935529,0.1223365,82422.0,82421.0,0.384838]
[1742280936118,0.001,82422.0,82421.0,0.384838]
[1742280936420,0.1698433,82431.0,82430.0,0.1213247]
[1742280936622,0.1698433,82431.0,82430.0,0.5011247]
[1742280936933,0.1698433,82431.0,82430.0,1.1576247]
[1742280937230,0.1213162,82436.0,82432.0,0.1213218]
[1742280937528,0.57809389,82445.0,82438.0,0.1213129]
[1742280937529,0.21729389,82445.0,82438.0,0.1213129]
[1742280937725,0.1213075,82442.0,82438.0,0.8662388]